bitfinex/quotes_SOLUSD_20241016
["timestamp","ask_amount","ask_price","bid_price","bid_amount"]
[1729095292122,32.1812,155.38,155.33,6.4375]
[1729095292123,6.4362,155.38,155.33,6.4375]
[1729095292323,15.6971,155.39,155.34,6.4373]
[1729095292832,15.6971,155.39,155.35,6.437]
[1729095293037,15.6971,155.39,155.33,16.0942]
[1729095293211,15.6971,155.39,155.3,16.0977]
[1729095293413,6.4375,155.34,155.3,16.0977]
[1729095294115,6.4388,155.31,155.27,20.0]
[1729095294315,6.4383,155.32,155.27,26.44]
[1729095294535,16.0913,155.37,155.29,6.4391]
[1729095294536,6.4376,155.34,155.29,6.4391]
[1729095295330,16.0913,155.37,155.3,16.0971]
[1729095295331,6.4365,155.37,155.3,16.0971]
[1729095295541,15.6971,155.39,155.35,6.4368]
[1729095295738,22.1325,155.39,155.35,6.4368]
[1729095296839,22.1325,155.39,155.33,22.5317]
[1729095296840,6.4363,155.37,155.33,22.5317]
[1729095297026,6.4363,155.37,155.33,16.0941]
[1729095297228,15.6971,155.39,155.33,22.5319]
[1729095297429,16.1847,155.43,155.33,16.0941]
[1729095297430,16.0847,155.43,155.33,16.0941]
[1729095297727,6.4351,155.4,155.35,6.4367]
[1729095297927,6.4351,155.4,155.33,16.0941]
[1729095298235,6.4379,155.33,155.26,6.5101]
[1729095298435,6.4383,155.32,155.26,6.5101]
[1729095298958,22.2682,155.38,155.26,6.5101]
[1729095299115,6.4379,155.33,155.28,6.4398]
[1729095300332,22.2682,155.38,155.28,23.776884]
[1729095300533,6.4367,155.36,155.31,22.5349]
[1729095300735,38.3587,155.38,155.26,6.5101]
[1729095300936,4.77296081,155.37,155.27,20.12549]
[1729095301138,38.3587,155.38,155.27,20.12549]
[1729095301330,6.4375,155.34,155.29,6.4395]
[1729095301536,6.4375,155.34,155.28,16.0995]
[1729095301734,6.437,155.35,155.31,6.4386]
[1729095301935,6.4371,155.35,155.31,6.4386]
[1729095302125,6.4363,155.37,155.3,16.0972]
[1729095302327,6.4363,155.37,155.33,6.4378]
[1729095302547,15.8806,155.38,155.33,6.4378]
[1729095302750,6.4356,155.39,155.32,16.0948]
[1729095303053,6.4356,155.39,155.33,20.0]
[1729095304148,6.436,155.38,155.33,26.4376]
[1729095305145,6.4353,155.4,155.33,20.0]
[1729095305354,6.4353,155.4,155.35,6.437]
[1729095305737,6.4353,155.4,155.36,6.4365]
[1729095306256,22.7307,155.42,155.34,16.0933]
[1729095306492,6.4359,155.38,155.34,22.5307]
[1729095306836,6.4355,155.39,155.35,6.4369]
[1729095307348,6.4351,155.4,155.36,6.4366]
[1729095307754,6.4346,155.41,155.37,6.4361]
[1729095308258,6.4346,155.41,155.36,22.5278]
[1729095309034,16.303,155.42,155.33,39.871584]
[1729095309234,6.4363,155.37,155.33,16.0947]
[1729095309459,16.0868,155.41,155.31,6.4385]
[1729095309674,6.4376,155.34,155.3,22.536]
[1729095310157,16.0888,155.39,155.3,22.536]
[1729095310362,16.0888,155.39,155.31,6.4384]
[1729095310363,6.4372,155.35,155.31,6.4384]
[1729095311238,16.0888,155.39,155.3,22.5361]
[1729095311239,6.4375,155.34,155.3,22.5361]
[1729095311441,6.4375,155.34,155.3,16.0971]
[1729095311743,6.437,155.35,155.31,6.4387]
[1729095312171,16.0888,155.39,155.3,16.0971]
[1729095312471,6.4379,155.33,155.3,16.0971]
[1729095313277,16.0888,155.39,155.27,15.8278]
[1729095313278,6.4383,155.32,155.28,6.4399]
[1729095313562,6.4392,155.3,155.26,6.4407]
[1729095313864,6.4406,155.27,155.22,6.4423]
[1729095314074,23.776884,155.32,155.22,6.4423]
[1729095314371,23.776884,155.32,155.21,16.1069]
[1729095314372,15.452,155.28,155.21,16.1069]
[1729095314584,6.4415,155.25,155.21,22.5497]
[1729095314789,6.4404,155.27,155.22,6.4423]
[1729095315057,6.4404,155.27,155.23,6.4419]
[1729095315238,6.4404,155.27,155.21,22.5494]
[1729095315434,6.441,155.26,155.21,22.5494]
[1729095315652,6.4414,155.25,155.21,16.1069]
[1729095315847,15.452,155.28,155.17,32.2208]
[1729095316052,6.2325,155.26,155.16,12.7305]
[1729095316245,6.2325,155.26,155.17,16.1109]
[1729095316653,6.2325,155.26,155.16,6.286]
[1729095316837,6.4425,155.22,155.16,6.4445]
[1729095317768,6.4425,155.22,155.17,6.4444]
[1729095319448,6.4425,155.22,155.14,16.1142]
[1729095319670,6.4442,155.18,155.13,6.4458]
[1729095320852,6.4447,155.17,155.12,20.6285713]
[1729095321053,6.4447,155.17,155.12,27.0750713]
[1729095321577,6.4451,155.16,155.12,0.6285713]
[1729095322843,6.0076,155.18,155.14,6.4457]
[1729095323137,6.4437,155.19,155.14,6.4457]
[1729095325663,6.4441,155.18,155.13,22.5609]
[1729095326370,15.1561,155.2,155.13,22.5609]
[1729095326564,23.776884,155.19,155.12,0.6285713]
[1729095326765,6.4457,155.15,155.12,0.6285713]
[1729095326943,23.876884,155.19,155.12,0.6285713]
[1729095327269,6.4462,155.13,155.12,0.6285713]
[1729095327453,21.6023,155.13,155.12,0.6285713]
[1729095330647,21.8589,155.18,155.12,0.6285713]
[1729095330849,6.4462,155.13,155.12,0.6285713]
[1729095331476,23.776884,155.17,155.12,0.6285713]
[1729095331656,21.8589,155.18,155.12,0.6285713]
[1729095331855,21.8589,155.18,155.12,16.7444713]
[1729095332054,15.5114,155.18,155.14,6.4457]
[1729095332255,15.5114,155.18,155.12,16.7444713]
[1729095332453,6.4431,155.21,155.16,6.4447]
[1729095332665,22.6082,155.22,155.16,6.4447]
[1729095332871,6.4429,155.21,155.16,6.4447]
[1729095333159,6.444,155.19,155.14,22.5592]
[1729095333378,6.4433,155.2,155.16,6.4448]
[1729095334582,6.443,155.21,155.16,6.4448]
[1729095335875,16.5619,155.22,155.17,16.1112]
[1729095336076,6.64369188,155.24,155.17,16.1112]
[1729095336077,6.64369188,155.24,155.17,23.776884]
[1729095336270,21.6403,155.26,155.17,23.776884]
[1729095336491,28.0811,155.26,155.21,6.4425]
[1729095336663,6.64395796,155.28,155.23,6.4419]
[1729095336867,21.6403,155.3,155.21,16.1066]
[1729095337174,6.4414,155.25,155.21,16.1066]
[1729095337561,6.64419673,155.28,155.21,16.1066]
[1729095337774,6.4411,155.26,155.21,22.5492]
[1729095338160,6.64419673,155.28,155.21,22.5492]
[1729095339458,6.4413,155.25,155.21,22.5492]
[1729095339903,6.4434,155.2,155.16,6.4449]
[1729095340498,16.1035,155.25,155.15,16.1129]
[1729095340786,15.885,155.23,155.15,16.1129]
[1729095341580,6.4442,155.18,155.14,6.4456]
[1729095341974,6.4426,155.22,155.17,6.4441]
[1729095342177,15.885,155.23,155.18,16.1095]
[1729095342178,22.3271,155.23,155.18,16.1095]
[1729095342484,15.885,155.23,155.19,6.4435]
[1729095342869,15.885,155.23,155.18,22.5535]
[1729095343688,22.327,155.23,155.18,22.5535]
[1729095344185,6.5649,155.26,155.18,16.1095]
[1729095344490,6.4416,155.24,155.2,6.4429]
[1729095345257,6.5649,155.26,155.18,22.5534]
[1729095345258,6.4423,155.23,155.18,22.5534]
[1729095345690,6.4435,155.2,155.14,16.1134]
[1729095345983,6.4437,155.19,155.15,6.445]
[1729095346168,6.4437,155.19,155.14,16.1134]
[1729095346169,6.4441,155.18,155.14,22.559]
[1729095346560,23.876884,155.25,155.12,7.0747713]
[1729095346764,16.0566,155.2,155.12,7.0747713]
[1729095348082,6.4455,155.15,155.12,0.6285713]
[1729095350183,16.1099,155.19,155.12,0.6285713]
[1729095350381,23.776884,155.18,155.12,0.6285713]
[1729095350890,6.4462,155.13,155.12,0.6285713]
[1729095356588,6.4495,155.05,155.01,22.5783]
[1729095356770,16.1214,155.08,154.98,16.1305]
[1729095356975,6.4508,155.02,154.98,22.5828]
[1729095357793,6.4504,155.03,154.98,22.5828]
[1729095358188,23.776884,155.07,154.98,22.5828]
[1729095358394,6.4508,155.02,154.98,22.5828]
[1729095358580,6.4504,155.03,154.98,22.5828]
[1729095360201,6.4498,155.05,154.99,6.4516]
[1729095360498,15.2073,155.07,155.0,6.4515]
[1729095360798,6.4492,155.06,155.0,6.4515]
[1729095361394,6.4501,155.04,154.99,6.4517]
[1729095362494,15.2073,155.07,154.98,16.1305]
[1729095362495,6.4511,155.02,154.98,16.1305]
[1729095364074,6.4502,155.04,154.98,16.1305]
[1729095364300,12.7708,155.06,155.01,6.451]
[1729095364493,6.4497,155.05,155.0,22.5798]
[1729095365002,15.2073,155.07,155.03,6.45]
[1729095365389,21.656,155.07,155.03,6.45]
[1729095365903,21.656,155.07,155.02,22.5766]
[1729095366282,21.656,155.07,155.02,16.126]
[1729095366483,21.656,155.07,155.03,6.4503]
[1729095368598,12.96544928,155.1,155.03,6.4503]
[1729095368781,31.5571,155.11,155.03,6.4503]
[1729095368782,15.4386,155.11,155.04,23.776884]
[1729095368984,6.6418,155.14,155.04,23.776884]
[1729095369183,6.6418,155.14,155.06,23.776884]
[1729095369403,6.6418,155.14,155.1,6.4473]
[1729095369587,6.6418,155.14,155.09,6.4478]
[1729095369786,6.6418,155.14,155.08,16.1201]
[1729095369787,6.4469,155.12,155.08,16.1201]
[1729095370202,6.4469,155.12,155.08,22.5682]
[1729095370391,6.6418,155.14,155.08,16.1201]
[1729095370593,6.6418,155.14,155.09,6.4475]
[1729095370594,13.0879,155.14,155.09,6.4475]
[1729095370800,13.0879,155.14,155.08,16.1201]
[1729095370801,6.4468,155.12,155.08,22.5682]
[1729095371309,6.4496,155.05,155.0,6.4512]
[1729095373085,6.4496,155.05,155.0,6.4515]
[1729095373501,6.4505,155.03,154.99,16.1296]
[1729095373900,6.4505,155.03,154.98,6.4521]
[1729095374107,6.451,155.02,154.96,22.5855]
[1729095374786,6.451,155.02,154.97,7.0811713]
[1729095379895,6.4512,155.01,154.97,7.0811713]
[1729095380391,23.776884,155.06,154.97,0.6285713]
[1729095380607,13.18985201,155.07,154.97,0.6285713]
[1729095380608,13.08985201,155.07,154.97,0.6285713]
[1729095380791,6.4504,155.03,154.98,16.1302]
[1729095380993,13.08985201,155.07,154.98,16.1302]
[1729095381195,6.4512,155.01,154.97,7.0810713]
[1729095381499,6.4524,154.98,154.97,0.6285713]
[1729095390523,6.4569,154.88,154.83,6.4583]
[1729095390698,6.4562,154.89,154.84,6.4579]
[1729095391531,16.1392,154.91,154.81,6.7864713]
[1729095391820,6.457,154.87,154.82,6.459]
[1729095392238,15.0329,154.9,154.81,16.7762713]
[1729095392239,6.4563,154.89,154.83,22.6046]
[1729095392527,15.0329,154.9,154.83,16.146]
[1729095392709,6.4571,154.87,154.82,6.459]
[1729095393233,6.4574,154.86,154.81,7.0880713]
[1729095394719,6.4571,154.87,154.81,7.0880713]
[1729095395021,15.0329,154.9,154.84,6.4579]
[1729095396123,15.0329,154.9,154.83,16.1464]
[1729095396320,6.4556,154.91,154.86,6.4573]
[1729095396543,16.0431,154.94,154.84,6.458]
[1729095396544,6.4561,154.9,154.84,6.458]
[1729095396830,6.4561,154.9,154.83,16.1464]
[1729095396831,0.1,154.92,154.83,22.6049]
[1729095397211,16.2369,154.93,154.83,22.6049]
[1729095397212,16.3369,154.93,154.83,22.6049]
[1729095397408,0.1,154.92,154.83,22.6049]
[1729095397729,23.876884,154.92,154.83,22.6049]
[1729095398433,6.4569,154.88,154.83,22.6049]
[1729095400336,6.4571,154.87,154.83,22.6049]
[1729095401601,30.53539719,154.92,154.83,22.6049]
[1729095401806,30.53539719,154.92,154.84,6.4582]
[1729095402009,6.4566,154.88,154.84,6.4582]
[1729095402718,6.4572,154.87,154.83,16.1464]
[1729095403307,6.4566,154.88,154.83,22.6048]
[1729095403740,6.4572,154.87,154.83,16.1464]
[1729095407322,6.4565,154.89,154.85,6.4578]
[1729095407535,6.4565,154.89,154.83,16.1464]
[1729095408642,6.4567,154.88,154.84,6.4581]
[1729095409725,6.4577,154.86,154.82,6.4588]
[1729095409928,6.4577,154.86,154.82,6.4587]
[1729095409929,6.4575,154.86,154.82,6.4587]
[1729095410117,16.1388,154.91,154.82,6.4587]
[1729095410449,6.4571,154.87,154.82,6.4587]
[1729095410816,16.1388,154.91,154.82,6.4587]
[1729095410817,6.4575,154.86,154.82,6.4587]
[1729095411139,6.4569,154.88,154.83,6.4584]
[1729095411341,16.1388,154.91,154.82,16.1472]
[1729095411342,16.1388,154.91,154.82,22.6061]
[1729095411519,6.4578,154.85,154.81,7.0879713]
[1729095411726,6.4584,154.84,154.81,0.6285713]
[1729095411913,21.35,154.88,154.81,0.6285713]
[1729095412226,21.35,154.88,154.81,7.0879713]
[1729095412424,6.4575,154.86,154.81,7.0879713]
[1729095413916,21.35,154.88,154.81,7.0879713]
[1729095414117,6.4578,154.85,154.81,7.0879713]
[1729095417540,6.4574,154.86,154.82,6.4588]
[1729095420527,15.2509,154.88,154.81,0.6285713]
[1729095420727,6.64935787,154.9,154.83,16.1464]
[1729095420946,6.4567,154.88,154.83,16.1464]
[1729095421125,6.4567,154.88,154.83,22.6049]
[1729095421324,6.64935787,154.9,154.83,16.1464]
[1729095421629,6.64935787,154.9,154.82,6.459]
[1729095421827,6.4571,154.87,154.82,6.459]
[1729095422517,6.4571,154.87,154.83,6.4586]
[1729095425728,6.4579,154.85,154.81,7.0879713]
[1729095426322,6.4575,154.86,154.82,6.459]
[1729095426846,16.1415,154.89,154.81,0.6285713]
[1729095427053,6.4581,154.85,154.81,7.0879713]
[1729095428947,6.64935787,154.9,154.81,0.6285713]
[1729095429152,6.64935787,154.9,154.84,20.03134883]
[1729095429357,6.4563,154.89,154.85,6.4575]
[1729095429531,6.4567,154.88,154.84,22.6032]
[1729095429723,6.4567,154.88,154.84,16.1452]
[1729095430043,6.4567,154.88,154.84,22.6034]
[1729095430234,32.8219,154.92,154.84,22.6034]
[1729095430437,6.4576,154.86,154.82,6.459]
[1729095430640,6.4576,154.86,154.81,23.2365713]
[1729095430839,6.4581,154.85,154.81,16.7771713]
[1729095431452,6.4584,154.84,154.81,0.6285713]
[1729095433053,6.1121,154.89,154.81,0.6285713]
[1729095433273,6.4571,154.87,154.83,6.4586]
[1729095433738,6.4567,154.88,154.84,6.4582]
[1729095433936,16.5845,154.92,154.84,20.03134883]
[1729095434242,6.4537,154.95,154.9,6.4556]
[1729095434430,6.4544,154.94,154.89,6.4561]
[1729095435253,6.4538,154.95,154.9,6.4555]
[1729095435464,6.65232927,154.97,154.92,6.4548]
[1729095435635,6.65232927,154.97,154.94,6.4539]
[1729095435828,6.65232927,154.97,154.93,6.4544]
[1729095436043,6.4533,154.96,154.92,16.1366]
[1729095436447,6.4548,154.93,154.89,16.1401]
[1729095436749,22.4143,154.93,154.81,0.6285713]
[1729095436934,6.457,154.87,154.83,16.1464]
[1729095437128,6.457,154.87,154.82,30.0]
[1729095437434,6.4565,154.89,154.84,6.4582]
[1729095437637,4.76226447,154.88,154.83,6.4586]
[1729095437933,6.4565,154.89,154.83,6.4586]
[1729095438141,4.7619929,154.88,154.83,16.1459]
[1729095438454,0.1,154.91,154.81,0.6285713]
[1729095438628,6.4575,154.86,154.81,0.6285713]
[1729095439336,6.4581,154.85,154.81,0.6285713]
[1729095441639,16.1392,154.91,154.81,0.6285713]
[1729095441939,6.4578,154.85,154.81,0.6285713]
[1729095442145,6.4575,154.86,154.81,7.0878713]
[1729095442353,6.4571,154.87,154.82,6.4589]
[1729095442631,6.457,154.87,154.82,6.459]
[1729095442863,6.4579,154.85,154.81,0.6285713]
[1729095443237,16.2418,154.88,154.81,0.6285713]
[1729095443545,6.4587,154.83,154.81,0.6285713]
[1729095443760,6.4591,154.82,154.81,0.6285713]
[1729095444067,16.1175,154.86,154.81,0.6285713]
[1729095444263,6.4579,154.85,154.81,7.0879713]
[1729095445135,6.4579,154.85,154.81,0.6285713]
[1729095445333,6.4585,154.84,154.81,0.6285713]
[1729095445544,6.4587,154.83,154.81,0.6285713]
[1729095446746,6.4591,154.82,154.81,0.6285713]
[1729095447855,11.21476935,154.82,154.81,0.6285713]
[1729095448773,6.4591,154.82,154.81,0.6285713]
[1729095450572,6.3761,154.85,154.81,0.6285713]
[1729095450760,4.75061584,154.84,154.81,0.6285713]
[1729095450962,4.75061584,154.83,154.81,0.6285713]
[1729095451156,6.3761,154.85,154.81,0.6285713]
[1729095451757,6.4591,154.82,154.81,0.6285713]
[1729095454658,6.462,154.75,154.67,20.03134883]
[1729095454851,6.462,154.75,154.7,6.4637]
[1729095457855,6.4616,154.76,154.71,6.4635]
[1729095458257,6.4616,154.76,154.72,20.03134883]
[1729095458870,6.461,154.78,154.74,6.4624]
[1729095459091,6.4604,154.79,154.74,26.49374883]
[1729095461762,13.13124639,154.81,154.75,6.4616]
[1729095461975,13.13124639,154.81,154.76,6.4615]
[1729095462172,6.4598,154.81,154.76,6.4615]
[1729095462578,15.7635,154.82,154.76,20.03134883]
[1729095462883,6.4595,154.81,154.76,42.64634883]
[1729095463380,6.4595,154.81,154.78,20.03134883]
[1729095463964,15.7635,154.82,154.78,20.03134883]
[1729095464166,15.7635,154.82,154.79,6.4603]
[1729095464563,15.7635,154.82,154.78,20.03134883]
[1729095464886,15.7635,154.82,154.78,26.49194883]
[1729095465770,6.459,154.83,154.8,20.03134883]
[1729095467084,6.4595,154.81,154.8,20.03134883]
[1729095467281,6.4595,154.81,154.78,20.03134883]
[1729095468082,6.4599,154.8,154.78,20.03134883]
[1729095468499,6.4599,154.8,154.76,22.615]
[1729095468669,6.7527528,154.84,154.73,21.5438]
[1729095468670,6.6527528,154.84,154.78,16.1514]
[1729095468873,13.1110528,154.84,154.79,6.46]
[1729095469574,6.6527528,154.84,154.8,6.4596]
[1729095469787,6.6527528,154.84,154.79,26.49154883]
[1729095471000,6.4587,154.83,154.78,22.6121]
[1729095471474,6.6527528,154.84,154.77,20.03134883]
[1729095471894,6.4599,154.8,154.77,20.03134883]
[1729095472485,6.4599,154.8,154.75,42.64744883]
[1729095472681,6.46,154.8,154.74,6.4621]
[1729095472997,22.3847,154.85,154.76,26.49284883]
[1729095472998,6.4594,154.82,154.76,26.49284883]
[1729095474196,6.4598,154.81,154.76,20.03134883]
[1729095474390,6.4598,154.81,154.76,26.49264883]
[1729095474999,6.4598,154.81,154.76,20.03134883]
[1729095475501,6.4598,154.81,154.75,6.4616]
[1729095478884,6.65334153,154.83,154.73,32.3124]
[1729095479084,6.4584,154.84,154.79,6.46]
[1729095479294,6.4584,154.84,154.78,22.6118]
[1729095479685,6.4587,154.83,154.78,22.6118]
[1729095480012,29.03528954,154.85,154.76,6.4614]
[1729095480013,6.4595,154.81,154.76,6.4614]
[1729095480308,6.4602,154.8,154.75,22.6167]
[1729095480496,6.4607,154.79,154.74,6.4621]
[1729095480695,6.4607,154.79,154.73,6.4627]
[1729095481009,0.1,154.82,154.72,16.1574]
[1729095481185,6.4614,154.77,154.72,22.6205]
[1729095481606,6.4609,154.78,154.72,22.6205]
[1729095482780,6.4613,154.77,154.72,22.6205]
[1729095482980,16.362,154.79,154.72,16.1574]
[1729095483180,32.5129,154.79,154.7,6.4641]
[1729095483408,32.5129,154.79,154.71,6.4637]
[1729095483613,16.362,154.79,154.68,35.18514883]
[1729095483790,16.362,154.79,154.7,20.03134883]
[1729095484133,16.362,154.79,154.74,6.4622]
[1729095484288,22.8224,154.79,154.74,6.4622]
[1729095484483,16.362,154.79,154.75,6.462]
[1729095484683,16.362,154.83,154.75,16.1547]
[1729095484890,16.362,154.83,154.68,15.3538]
[1729095484891,4.75624359,154.82,154.74,20.03134883]
[1729095485104,16.362,154.83,154.74,6.4621]
[1729095485105,6.4604,154.79,154.74,6.4621]
[1729095485292,16.362,154.83,154.74,6.4621]
[1729095485293,6.4602,154.8,154.75,6.462]
[1729095485880,6.4602,154.8,154.74,16.1559]
[1729095485881,0.1,154.82,154.74,16.1559]
[1729095486195,6.4606,154.79,154.74,16.1559]
[1729095487583,6.4606,154.79,154.74,22.6182]
[1729095488005,6.4606,154.79,154.74,16.1559]
[1729095489302,0.1,154.82,154.74,16.1559]
[1729095489486,6.4618,154.76,154.71,22.6227]
[1729095489680,6.4613,154.77,154.72,6.4632]
[1729095490204,6.4617,154.76,154.71,16.1591]
[1729095490419,6.4617,154.76,154.71,22.6227]
[1729095491310,22.2415,154.79,154.68,31.3157]
[1729095491510,4.76129777,154.78,154.68,31.3157]
[1729095491704,4.76129777,154.77,154.68,15.1538]
[1729095491908,6.4621,154.75,154.7,6.4637]
[1729095492106,6.4617,154.76,154.71,6.4636]
[1729095492829,6.4612,154.77,154.72,6.463]
[1729095494498,6.461,154.78,154.71,16.1589]
[1729095494702,12.5504,154.79,154.74,6.4624]
[1729095494901,11.22223374,154.78,154.73,22.6194]
[1729095495114,6.4608,154.78,154.73,22.6194]
[1729095496415,6.4614,154.77,154.73,16.1567]
[1729095496804,6.4614,154.77,154.73,22.6195]
[1729095497209,6.4614,154.77,154.69,52.35394883]
[1729095497210,6.4624,154.74,154.7,16.1594]
[1729095497407,6.4624,154.74,154.68,6.4648]
[1729095497621,6.4633,154.72,154.67,22.6279]
[1729095497937,16.2557,154.75,154.66,0.6285713]
[1729095498229,15.3732,154.77,154.69,6.4644]
[1729095498439,28.53729285,154.76,154.66,16.7925713]
[1729095498723,6.4629,154.73,154.68,6.4648]
[1729095498926,6.4624,154.74,154.69,6.4644]
[1729095499137,6.4623,154.75,154.69,6.4644]
[1729095499309,6.4625,154.74,154.69,6.4644]
[1729095499719,6.4625,154.74,154.69,6.4645]
[1729095500320,6.65694893,154.76,154.68,16.1617]
[1729095500605,6.65694893,154.76,154.71,6.4635]
[1729095500813,15.2732,154.77,154.7,16.1595]
[1729095501016,15.2732,154.77,154.73,6.4628]
[1729095501731,15.2732,154.77,154.71,6.4633]
[1729095502032,6.4625,154.74,154.7,16.1595]
[1729095502421,15.2732,154.77,154.7,16.1595]
[1729095502732,15.2732,154.77,154.73,6.4627]
[1729095503109,15.2732,154.77,154.74,6.4622]
[1729095503326,12.74301449,154.79,154.75,6.4618]
[1729095503607,16.1451,154.85,154.75,6.4618]
[1729095503608,15.4352,154.85,154.75,20.03134883]
[1729095503815,4.76274663,154.84,154.8,6.4598]
[1729095504023,15.4352,154.85,154.81,6.4594]
[1729095504229,15.4352,154.85,154.8,16.1493]
[1729095504428,6.64943315,154.86,154.82,6.4588]
[1729095504618,6.64943315,154.86,154.81,6.4592]
[1729095505532,6.6357,154.87,154.82,6.4587]
[1729095505707,13.0927,154.87,154.82,6.4587]
[1729095506117,13.0927,154.87,154.81,6.4594]
[1729095507229,6.6357,154.87,154.82,6.4588]
[1729095507533,13.0928,154.87,154.82,6.4588]
[1729095508027,6.4571,154.87,154.82,6.4588]
[1729095510432,16.489,154.89,154.77,68.48904883]
[1729095510643,22.9454,154.89,154.83,6.4583]
[1729095510838,16.489,154.89,154.82,16.1472]
[1729095511047,6.65114149,154.9,154.83,20.03134883]
[1729095511332,16.1813,154.93,154.88,6.4565]
[1729095511535,22.83228454,154.93,154.87,22.5995]
[1729095511709,6.455,154.92,154.87,16.1425]
[1729095512840,22.83228454,154.93,154.87,16.1425]
[1729095513216,22.6345,154.97,154.91,6.455]
[1729095513536,17.85407627,154.96,154.91,6.455]
[1729095513844,6.4532,154.96,154.91,6.455]
[1729095514219,16.1813,154.97,154.86,20.03134883]
[1729095514527,16.1813,154.97,154.93,6.4545]
[1729095514916,6.64969406,154.99,154.94,6.454]
[1729095515216,16.1813,155.01,154.93,16.1357]
[1729095515414,22.6328,155.01,154.95,6.4536]
[1729095515742,22.6328,155.01,154.94,6.454]
[1729095515743,16.1813,155.01,154.94,6.454]
[1729095516112,6.4536,154.96,154.9,22.5947]
[1729095516659,6.4537,154.95,154.9,22.5947]
[1729095516820,6.4543,154.94,154.88,6.4564]
[1729095517026,16.1311,154.98,154.88,6.4564]
[1729095517027,6.4546,154.93,154.88,6.4564]
[1729095517233,6.4546,154.93,154.87,16.1423]
[1729095517438,6.4553,154.91,154.87,16.1423]
[1729095517633,6.4558,154.9,154.85,22.8678]
[1729095517942,6.4558,154.9,154.85,6.4578]
[1729095518327,6.4562,154.89,154.84,22.6038]
[1729095518826,6.455,154.92,154.87,6.457]
[1729095519146,6.4545,154.93,154.88,6.4562]
[1729095519317,6.3919,154.96,154.87,6.4569]
[1729095519511,6.3919,154.96,154.86,16.1427]
[1729095519512,30.42779947,154.95,154.86,22.6]
[1729095519709,6.4564,154.89,154.84,6.4579]
[1729095520131,16.1358,154.94,154.83,16.1464]
[1729095520338,6.65091547,154.95,154.82,6.0488]
[1729095520544,6.455,154.92,154.87,6.4568]
[1729095520713,6.4545,154.93,154.88,6.4565]
[1729095521140,6.65091547,154.95,154.87,6.4569]
[1729095521141,6.4549,154.92,154.87,6.4569]
[1729095521342,6.456,154.9,154.86,16.1432]
[1729095522223,6.456,154.9,154.86,22.6006]
[1729095522423,6.4551,154.92,154.87,6.4567]
[1729095522622,6.4545,154.93,154.88,6.4565]
[1729095522830,6.65091547,154.95,154.84,20.03134883]
[1729095523023,6.4545,154.93,154.88,22.5972]
[1729095524645,6.4542,154.94,154.89,6.4558]
[1729095524824,6.4549,154.93,154.88,22.5973]
[1729095525023,6.455,154.92,154.88,22.5973]
[1729095525438,6.4557,154.9,154.86,6.4573]
[1729095526237,6.4554,154.91,154.86,6.4573]
[1729095526820,6.65091547,154.95,154.89,6.4558]
[1729095527135,6.455,154.92,154.88,22.5976]
[1729095527325,6.455,154.92,154.88,16.1411]
[1729095527846,6.65091547,154.95,154.9,16.1388]
[1729095528052,22.6341,154.97,154.92,6.4546]
[1729095528229,22.6341,154.97,154.9,16.1388]
[1729095528433,6.4528,154.97,154.93,6.4544]
[1729095528720,12.85483657,155.0,154.92,16.1369]
[1729095528948,6.64933657,155.0,154.94,16.1347]
[1729095529338,6.4527,154.98,154.94,16.1347]
[1729095529938,0.1,154.99,154.85,6.3742]
[1729095530255,22.3035,154.98,154.88,16.1408]
[1729095530541,6.4541,154.94,154.9,6.4557]
[1729095530749,6.4541,154.94,154.89,6.456]